fUSD/lending_fUSD_20250202
["ID","MTS","AMOUNT","RATE_DAILY","PERIOD"]
[351272903,1738505440875,-500.0,0.00010958,2]
[351272905,1738505440885,-500.0,0.00010958,2]
[351272907,1738505440895,-307.97106307,0.00010958,2]
[351272909,1738505440904,-500.0,0.00010958,2]
[351272911,1738505440914,-550.64,0.00010958,2]
[351272913,1738505440927,-1342.11,0.00010958,2]
[351272915,1738505440937,-500.0,0.00010958,2]
[351272917,1738505440949,-2093.39,0.00010958,2]
[351272919,1738505440958,-500.0,0.00010958,2]
[351272921,1738505440968,-500.0,0.00010958,2]
[351272923,1738505440977,-880.18,0.00010958,2]
[351272925,1738505440986,-1643.92,0.00010958,2]
[351272927,1738505440995,-500.0,0.00010958,2]
[351272928,1738505441004,-550.95258336,0.00010958,2]
[351272931,1738505441013,-500.0,0.00010958,2]
[351272932,1738505441023,-793.33,0.00010958,2]
[351272934,1738505441032,-500.0,0.00010958,2]
[351272936,1738505441041,-500.0,0.00010958,2]
[351272938,1738505441051,-500.0,0.00010958,2]
[351272940,1738505441060,-1232.16,0.00010958,2]
[351272942,1738505441070,-500.0,0.00010958,2]
[351272944,1738505441079,-534.34,0.00010958,2]
[351272946,1738505441089,-588.54,0.00010958,2]
[351272948,1738505441098,-500.0,0.00010958,2]
[351272950,1738505441107,-523.96536776,0.00010958,2]
[351272952,1738505441116,-538.87,0.00010958,2]
[351272954,1738505441125,-793.28,0.00010958,2]
[351272955,1738505441135,-500.0,0.00010958,2]
[351272956,1738505441144,-467.64537378,0.00010958,2]
[351272957,1738505441153,-500.0,0.00010958,2]
[351272958,1738505441163,-1592.88,0.00010958,2]
[351272959,1738505441173,-616.53,0.00010958,2]
[351272960,1738505441183,-500.0,0.00010958,2]
[351272961,1738505441192,-500.0,0.00010958,2]
[351272962,1738505441202,-500.0,0.00010958,2]
[351272963,1738505441211,-261.38057666,0.00010958,2]
[351272964,1738505441220,-1854.87,0.00010958,2]
[351272965,1738505441229,-500.0,0.00010958,2]
[351272966,1738505441238,-1690.33,0.00010958,2]
[351272967,1738505441248,-500.0,0.00010958,2]
[351272968,1738505441257,-534.43,0.00010958,2]
[351272969,1738505441267,-500.0,0.00010958,2]
[351272970,1738505441276,-500.0,0.00010958,2]
[351272971,1738505441285,-500.0,0.00010958,2]
[351272972,1738505441294,-500.0,0.00010958,2]
[351272973,1738505441304,-508.93,0.00010958,2]
[351272974,1738505441313,-500.0,0.00010958,2]
[351272975,1738505441323,-637.72,0.00010958,2]
[351272976,1738505441332,-500.0,0.00010958,2]
[351272977,1738505441341,-500.0,0.00010958,2]
[351272978,1738505441552,-1150.84,0.00010958,2]
[351272979,1738505441606,-500.0,0.00010958,2]
[351272980,1738505441616,-508.66,0.00010958,2]
[351272981,1738505441625,-500.0,0.00010958,2]
[351272982,1738505441635,-500.0,0.00010958,2]
[351272983,1738505441645,-500.0,0.00010958,2]
[351272984,1738505441654,-551.35065534,0.00010958,2]
[351272985,1738505441663,-586.07,0.00010958,2]
[351272986,1738505441672,-500.0,0.00010958,2]
[351272987,1738505441681,-800.25,0.00010958,2]
[351272988,1738505441691,-731.54,0.00010958,2]
[351272989,1738505441700,-500.0,0.00010958,2]
[351272990,1738505441709,-1512.68,0.00010958,2]
[351272991,1738505441719,-500.0,0.00010958,2]
[351272992,1738505441727,-1512.68,0.00010958,2]
[351272993,1738505441737,-1512.68,0.00010958,2]
[351272994,1738505441746,-1305.07,0.00010958,2]
[351272995,1738505441755,-522.01439836,0.00010958,2]
[351272996,1738505441764,-1841.9,0.00010958,2]
[351272997,1738505441773,-734.22,0.00010958,2]
[351272998,1738505441782,-500.0,0.00010958,2]
[351272999,1738505441793,-500.0,0.00010958,2]
[351273000,1738505441805,-1731.58,0.00010958,2]
[351273001,1738505441814,-573.1,0.00010958,2]
[351273002,1738505441824,-500.0,0.00010958,2]
[351273003,1738505441834,-500.0,0.00010958,2]
[351273004,1738505441844,-296.96599808,0.00010958,2]
[351273005,1738505441856,-500.0,0.00010958,2]
[351273006,1738505441865,-1366.78,0.00010958,2]
[351273007,1738505441875,-500.0,0.00010958,2]
[351273008,1738505441884,-500.0,0.00010958,2]
[351273009,1738505441893,-521.42,0.00010958,2]
[351273010,1738505441902,-500.0,0.00010958,2]
[351273011,1738505441911,-1447.06,0.00010958,2]
[351273012,1738505441920,-500.0,0.00010958,2]
[351273013,1738505441929,-955.56,0.00010958,2]
[351273014,1738505441939,-500.0,0.00010958,2]
[351273015,1738505441949,-500.0,0.00010958,2]
[351273016,1738505441961,-500.0,0.00010958,2]
[351273017,1738505441970,-500.0,0.00010958,2]
[351273018,1738505441979,-904.27,0.00010958,2]
[351273019,1738505441988,-854.39,0.00010958,2]
[351273020,1738505441997,-500.0,0.00010958,2]
[351273021,1738505442007,-500.0,0.00010958,2]
[351273022,1738505442016,-500.0,0.00010958,2]
[351273023,1738505442026,-2762.56,0.00010958,2]
[351273024,1738505442035,-500.0,0.00010958,2]
[351273025,1738505442044,-500.0,0.00010958,2]
[351273026,1738505442054,-500.0,0.00010958,2]
[351273027,1738505442063,-666.98,0.00010958,2]
[351273028,1738505442073,-500.0,0.00010958,2]
[351273029,1738505442082,-783.0,0.00010958,2]
[351273030,1738505442091,-500.0,0.00010958,2]
[351273031,1738505442101,-500.0,0.00010958,2]
[351273032,1738505442110,-500.0,0.00010958,2]
[351273033,1738505442120,-500.0,0.00010958,2]
[351273034,1738505442129,-2104.01,0.00010958,2]
[351273035,1738505442138,-2287.85,0.00010958,2]
[351273036,1738505442147,-501.17993349,0.00010958,2]
[351273037,1738505442156,-500.0,0.00010958,2]
[351273038,1738505442167,-523.60861001,0.00010958,2]
[351273039,1738505442176,-500.0,0.00010958,2]
[351273040,1738505442185,-944.74,0.00010958,2]
[351273041,1738505442195,-505.82,0.00010958,2]
[351273042,1738505442204,-738.27,0.00010958,2]
[351273043,1738505442213,-500.0,0.00010958,2]
[351273044,1738505442222,-500.0,0.00010958,2]
[351273045,1738505442233,-1519.92,0.00010958,2]
[351273046,1738505442241,-1297.85,0.00010958,2]
[351273047,1738505442250,-500.0,0.00010958,2]
[351273048,1738505442260,-500.0,0.00010958,2]
[351273049,1738505442269,-500.0,0.00010958,2]
[351273050,1738505442279,-500.0,0.00010958,2]
[351273051,1738505442288,-500.0,0.00010958,2]
[351273052,1738505442298,-500.0,0.00010958,2]
[351273053,1738505442307,-500.0,0.00010958,2]
[351273054,1738505442317,-500.0,0.00010958,2]
[351273055,1738505442326,-500.0,0.00010958,2]
[351273056,1738505442335,-643.77,0.00010958,2]
[351273057,1738505442345,-784.02,0.00010958,2]
[351273058,1738505442355,-500.0,0.00010958,2]
[351273059,1738505442364,-520.31286381,0.00010958,2]
[351273060,1738505442374,-500.0,0.00010958,2]
[351273061,1738505442383,-500.0,0.00010958,2]
[351273062,1738505442392,-500.0,0.00010958,2]
[351273063,1738505442402,-500.0,0.00010958,2]
[351273064,1738505442412,-500.0,0.00010958,2]
[351273065,1738505442422,-500.0,0.00010958,2]
[351273066,1738505442432,-500.0,0.00010958,2]
[351273067,1738505442442,-500.0,0.00010958,2]
[351273068,1738505442451,-500.0,0.00010958,2]
[351273069,1738505442461,-500.0,0.00010958,2]
[351273070,1738505442471,-529.45,0.00010958,2]
[351273071,1738505442480,-1418.55,0.00010958,2]
[351273072,1738505442490,-367.54756689,0.00010958,2]
[351273073,1738505442499,-500.0,0.00010958,2]
[351273074,1738505442510,-500.0,0.00010958,2]
[351273075,1738505442524,-517.07,0.00010958,2]
[351273076,1738505442533,-500.0,0.00010958,2]
[351273077,1738505442543,-500.0,0.00010958,2]
[351273078,1738505442554,-500.0,0.00010958,2]
[351273079,1738505442563,-2783.69,0.00010958,2]
[351273080,1738505442573,-1420.23,0.00010958,2]
[351273081,1738505442583,-2181.51,0.00010958,2]
[351273082,1738505442595,-1225.35,0.00010958,2]
[351273083,1738505442605,-500.0,0.00010958,2]
[351273084,1738505442614,-500.0,0.00010958,2]
[351273085,1738505442625,-500.0,0.00010958,2]
[351273086,1738505442634,-500.0,0.00010958,2]
[351273087,1738505442644,-500.0,0.00010958,2]
[351273088,1738505442654,-500.0,0.00010958,2]
[351273089,1738505442665,-942.19,0.00010958,2]
[351273090,1738505442675,-500.0,0.00010958,2]
[351273091,1738505442685,-844.52,0.00010958,2]
[351273092,1738505442695,-507.86,0.00010958,2]
[351273093,1738505442704,-500.0,0.00010958,2]
[351273094,1738505442713,-500.0,0.00010958,2]
[351273095,1738505442722,-1267.86,0.00010958,2]
[351273096,1738505442732,-500.0,0.00010958,2]
[351273097,1738505442742,-500.0,0.00010958,2]
[351273098,1738505442751,-500.0,0.00010958,2]
[351273099,1738505442761,-500.0,0.00010958,2]
[351273100,1738505442771,-1642.95,0.00010958,2]
[351273101,1738505442780,-500.0,0.00010958,2]
[351273102,1738505442789,-5000.0,0.00010958,2]
[351273103,1738505442799,-500.0,0.00010958,2]
[351273104,1738505442808,-500.0,0.00010958,2]
[351273105,1738505442818,-632.5,0.00010958,2]
[351273106,1738505442827,-500.0,0.00010958,2]
[351273107,1738505442837,-717.96,0.00010958,2]
[351273108,1738505442846,-500.0,0.00010958,2]
[351273109,1738505442855,-862.89,0.00010958,2]
[351273110,1738505442864,-500.0,0.00010958,2]
[351273111,1738505442874,-500.0,0.00010958,2]
[351273112,1738505442884,-500.0,0.00010958,2]
[351273114,1738505442893,-978.15,0.00010958,2]
[351273115,1738505442902,-500.0,0.00010958,2]
[351273116,1738505442913,-1851.1,0.00010958,2]
[351273117,1738505442922,-591.76,0.00010958,2]
[351273118,1738505442931,-722.67,0.00010958,2]
[351273119,1738505442941,-500.0,0.00010958,2]
[351273120,1738505442950,-500.0,0.00010958,2]
[351273122,1738505442960,-500.0,0.00010958,2]
[351273124,1738505442970,-500.0,0.00010958,2]
[351273126,1738505442980,-286.01982116,0.00010958,2]
[351273128,1738505442990,-520.38,0.00010958,2]
[351273129,1738505443000,-500.0,0.00010958,2]
[351273131,1738505443009,-500.41250337,0.00010958,2]
[351273133,1738505443019,-500.0,0.00010958,2]
[351273135,1738505443029,-1708.12,0.00010958,2]
[351273137,1738505443039,-233.5134663,0.00010958,2]
[351273139,1738505443049,-523.57,0.00010958,2]
[351273141,1738505443058,-500.0,0.00010958,2]
[351273143,1738505443067,-500.0,0.00010958,2]
[351273145,1738505443077,-500.0,0.00010958,2]
[351273147,1738505443086,-760.88,0.00010958,2]
[351273149,1738505443096,-500.0,0.00010958,2]
[351273151,1738505443105,-500.0,0.00010958,2]
[351273153,1738505443115,-500.0,0.00010958,2]
[351273155,1738505443124,-500.0,0.00010958,2]
[351273157,1738505443134,-500.0,0.00010958,2]
[351273159,1738505443144,-500.0,0.00010958,2]
[351273161,1738505443155,-1175.0,0.00010958,2]
[351273163,1738505443165,-811.43,0.00010958,2]
[351273165,1738505443175,-500.0,0.00010958,2]
[351273167,1738505443184,-1373.61,0.00010958,2]
[351273168,1738505443193,-747.24,0.00010958,2]
[351273169,1738505443202,-1105.09,0.00010958,2]
[351273170,1738505443212,-500.0,0.00010958,2]
[351273171,1738505443221,-500.0,0.00010958,2]
[351273172,1738505443230,-1419.66,0.00010958,2]
[351273173,1738505443239,-500.0,0.00010958,2]
[351273174,1738505443249,-500.0,0.00010958,2]
[351273175,1738505443258,-161.39830479,0.00010958,2]
[351273176,1738505443267,-899.67,0.00010958,2]
[351273177,1738505443278,-500.0,0.00010958,2]
[351273178,1738505443288,-500.0,0.00010958,2]
[351273179,1738505443297,-814.85,0.00010958,2]
[351273180,1738505443307,-500.0,0.00010958,2]
[351273181,1738505443316,-500.0,0.00010958,2]
[351273182,1738505443326,-967.34,0.00010958,2]
[351273183,1738505443335,-984.06,0.00010958,2]
[351273184,1738505443346,-500.0,0.00010958,2]
[351273185,1738505443355,-500.0,0.00010958,2]
[351273186,1738505443365,-500.0,0.00010958,2]
[351273187,1738505443375,-500.0,0.00010958,2]
[351273188,1738505443384,-500.0,0.00010958,2]
[351273189,1738505443394,-494.74239767,0.00010958,2]
[351273190,1738505443403,-709.72,0.00010958,2]
[351273191,1738505443414,-500.0,0.00010958,2]
[351273192,1738505443425,-500.0,0.00010958,2]
[351273193,1738505443435,-500.0,0.00010958,2]
[351273194,1738505443445,-500.0,0.00010958,2]
[351273195,1738505443454,-500.0,0.00010958,2]
[351273196,1738505443464,-580.72,0.00010958,2]
[351273197,1738505443474,-500.0,0.00010958,2]
[351273198,1738505443483,-502.75718991,0.00010958,2]
[351273200,1738505443493,-509.47,0.00010958,2]
[351273201,1738505443503,-500.0,0.00010958,2]
[351273202,1738505443514,-1025.92,0.00010958,2]
[351273203,1738505443525,-500.0,0.00010958,2]
[351273205,1738505443535,-1529.4,0.00010958,2]
[351273207,1738505443544,-500.0,0.00010958,2]
[351273209,1738505443555,-500.0,0.00010958,2]
[351273211,1738505443564,-500.0,0.00010958,2]
[351273212,1738505443574,-500.0,0.00010958,2]
[351273213,1738505443583,-500.0,0.00010958,2]
[351273214,1738505443595,-500.0,0.00010958,2]
[351273215,1738505443605,-500.0,0.00010958,2]
[351273216,1738505443615,-500.0,0.00010958,2]
[351273217,1738505443625,-501.67726457,0.00010958,2]
[351273218,1738505443634,-500.0,0.00010958,2]
[351273219,1738505443644,-736.8,0.00010958,2]
[351273220,1738505443653,-500.0,0.00010958,2]
[351273221,1738505443664,-500.0,0.00010958,2]
[351273222,1738505443674,-500.0,0.00010958,2]
[351273223,1738505443684,-500.0,0.00010958,2]
[351273224,1738505443693,-500.0,0.00010958,2]
[351273225,1738505443703,-500.0,0.00010958,2]
[351273226,1738505443712,-500.0,0.00010958,2]
[351273227,1738505443721,-500.0,0.00010958,2]
[351273228,1738505443731,-500.0,0.00010958,2]
[351273229,1738505443740,-500.0,0.00010958,2]
[351273230,1738505443749,-500.0,0.00010958,2]
[351273232,1738505443758,-500.0,0.00010958,2]
[351273233,1738505443768,-794.58,0.00010958,2]
[351273234,1738505443778,-500.0,0.00010958,2]
[351273235,1738505443788,-500.0,0.00010958,2]
[351273236,1738505443798,-515.19,0.00010958,2]
[351273237,1738505443808,-551.09,0.00010958,2]
[351273238,1738505443818,-500.0,0.00010958,2]
[351273239,1738505443827,-500.0,0.00010958,2]
[351273240,1738505443836,-413.55966787,0.00010958,2]
[351273241,1738505443845,-500.0,0.00010958,2]
[351273242,1738505443854,-500.0,0.00010958,2]
[351273243,1738505443863,-1457.11,0.00010958,2]
[351273244,1738505443873,-500.0,0.00010958,2]
[351273245,1738505443882,-500.0,0.00010958,2]
[351273246,1738505443892,-500.0,0.00010958,2]
[351273247,1738505443901,-500.0,0.00010958,2]
[351273248,1738505443911,-500.0,0.00010958,2]
[351273249,1738505443921,-500.0,0.00010958,2]
[351273250,1738505443931,-507.49506771,0.00010958,2]
[351273251,1738505443942,-848.94,0.00010958,2]
[351273252,1738505443952,-562.76,0.00010958,2]
[351273253,1738505443962,-1457.16,0.00010958,2]
[351273254,1738505443972,-500.0,0.00010958,2]
[351273255,1738505443983,-512.04,0.00010958,2]
[351273256,1738505443993,-500.0,0.00010958,2]
[351273257,1738505444003,-500.0,0.00010958,2]
[351273258,1738505444013,-500.0,0.00010958,2]
[351273259,1738505444022,-500.0,0.00010958,2]
[351273260,1738505444031,-1061.96,0.00010958,2]
[351273261,1738505444040,-1032.24,0.00010958,2]
[351273262,1738505444050,-510.71,0.00010958,2]
[351273263,1738505444059,-500.0,0.00010958,2]
[351273264,1738505444069,-500.0,0.00010958,2]
[351273265,1738505444079,-1015.65,0.00010958,2]
[351273266,1738505444088,-500.0,0.00010958,2]
[351273267,1738505444097,-1177.9,0.00010958,2]
[351273268,1738505444107,-679.22,0.00010958,2]
[351273269,1738505444116,-12.51255849,0.00010958,2]
[351273270,1738505444169,-258.25686478,0.00010958,2]
[351273271,1738505444208,-229.23057673,0.00010958,2]
[351273272,1738505444217,-500.0,0.00010958,2]
[351273273,1738505444227,-500.0,0.00010958,2]
[351273274,1738505444237,-584.42,0.00010958,2]
[351273275,1738505444247,-500.0,0.00010958,2]
[351273276,1738505444256,-1198.33,0.00010958,2]
[351273277,1738505444266,-1198.33,0.00010958,2]
[351273278,1738505444276,-1198.33,0.00010958,2]
[351273279,1738505444287,-500.0,0.00010958,2]
[351273280,1738505444296,-500.0,0.00010958,2]
[351273281,1738505444305,-412.50036655,0.00010958,2]
[351273282,1738505444316,-500.0,0.00010958,2]
[351273283,1738505444325,-500.0,0.00010958,2]
[351273284,1738505444335,-500.0,0.00010958,2]
[351273285,1738505444346,-1657.79,0.00010958,2]
[351273286,1738505444355,-1057.32,0.00010958,2]
[351273287,1738505444365,-513.37071642,0.00010958,2]
[351273288,1738505444375,-500.0,0.00010958,2]
[351273289,1738505444385,-500.0,0.00010958,2]
[351273290,1738505444395,-500.0,0.00010958,2]
[351273291,1738505444404,-500.0,0.00010958,2]
[351273292,1738505444414,-500.0,0.00010958,2]
[351273293,1738505444424,-500.0,0.00010958,2]
[351273294,1738505444434,-500.0,0.00010958,2]
[351273295,1738505444444,-500.0,0.00010958,2]
[351273296,1738505444453,-500.0,0.00010958,2]
[351273297,1738505444463,-500.0,0.00010958,2]
[351273298,1738505444472,-737.32,0.00010958,2]
[351273299,1738505444482,-865.79,0.00010958,2]
[351273300,1738505444491,-500.0,0.00010958,2]
[351273301,1738505444501,-500.0,0.00010958,2]
[351273302,1738505444514,-500.0,0.00010958,2]
[351273303,1738505444524,-876.1331509,0.00010958,2]
[351273304,1738505444536,-440.2668491,0.00010958,2]
[351273305,1738505444545,-529.20812834,0.00010958,2]
[351273306,1738505444555,-671.26,0.00010958,2]
[351273307,1738505444566,-500.0,0.00010958,2]
[351273308,1738505444575,-306.53619655,0.00010958,2]
[351273309,1738505444585,-500.0,0.00010958,2]
[351273310,1738505444595,-751.62,0.00010958,2]
[351273311,1738505444607,-750.62,0.00010958,2]
[351273312,1738505444616,-1011.53,0.00010958,2]
[351273313,1738505444626,-518.03228226,0.00010958,2]
[351273314,1738505444635,-389.03654375,0.00010958,2]
[351273315,1738505444648,-110.96345625,0.00010958,2]
[351273316,1738505444658,-500.0,0.00010958,2]
[351273317,1738505444668,-500.0,0.00010958,2]
[351273318,1738505444677,-500.0,0.00010958,2]
[351273319,1738505444687,-500.0,0.00010958,2]
[351273320,1738505444697,-500.0,0.00010958,2]
[351273321,1738505444706,-459.22066586,0.00010958,2]
[351273322,1738505444718,-40.77933414,0.00010958,2]
[351273323,1738505444728,-500.0,0.00010958,2]
[351273324,1738505444738,-500.0,0.00010958,2]
[351273325,1738505444747,-1248.28,0.00010958,2]
[351273326,1738505444756,-519.27,0.00010958,2]
[351273327,1738505444766,-500.0,0.00010958,2]
[351273328,1738505444776,-775.41,0.00010958,2]
[351273329,1738505444786,-500.0,0.00010958,2]
[351273330,1738505444796,-500.0,0.00010958,2]
[351273331,1738505444805,-500.0,0.00010958,2]
[351273332,1738505444815,-650.78,0.00010958,2]
[351273333,1738505444824,-500.0,0.00010958,2]
[351273334,1738505444833,-300.0,0.00010958,2]
[351273335,1738505444842,-500.0,0.00010958,2]
[351273336,1738505444852,-137.01066587,0.00010958,2]
[351273337,1738505444934,-362.98933413,0.00010958,2]
[351273338,1738505444944,-500.0,0.00010958,2]
[351273339,1738505444954,-787.2,0.00010958,2]
[351273340,1738505444965,-500.0,0.00010958,2]
[351273341,1738505444975,-500.0,0.00010958,2]
[351273342,1738505444984,-500.0,0.00010958,2]
[351273343,1738505444994,-500.0,0.00010958,2]
[351273344,1738505445003,-1398.59,0.00010958,2]
[351273345,1738505445012,-2098.34,0.00010958,2]
[351273346,1738505445022,-500.0,0.00010958,2]
[351273347,1738505445032,-500.0,0.00010958,2]
[351273348,1738505445042,-1717.3,0.00010958,2]
[351273349,1738505445051,-500.0,0.00010958,2]
[351273350,1738505445061,-535.92,0.00010958,2]
[351273351,1738505445071,-500.0,0.00010958,2]
[351273352,1738505445081,-510.02432549,0.00010958,2]
[351273353,1738505445091,-500.0,0.00010958,2]
[351273354,1738505445101,-520.83,0.00010958,2]
[351273355,1738505445111,-500.0,0.00010958,2]
[351273356,1738505445121,-500.0,0.00010958,2]
[351273357,1738505445131,-500.0,0.00010958,2]
[351273358,1738505445141,-1388.03,0.00010958,2]
[351273359,1738505445151,-500.0,0.00010958,2]
[351273360,1738505445160,-501.75131774,0.00010958,2]
[351273361,1738505445170,-696.21,0.00010958,2]
[351273362,1738505445180,-1438.93,0.00010958,2]
[351273363,1738505445190,-638.42,0.00010958,2]
[351273364,1738505445200,-503.8812828,0.00010958,2]
[351273365,1738505445210,-1523.64,0.00010958,2]
[351273366,1738505445220,-500.0,0.00010958,2]
[351273367,1738505445229,-500.0,0.00010958,2]
[351273368,1738505445238,-500.0,0.00010958,2]
[351273369,1738505445248,-500.0,0.00010958,2]
[351273370,1738505445259,-509.07926153,0.00010958,2]
[351273371,1738505445269,-1164.79,0.00010958,2]
[351273372,1738505445279,-500.0,0.00010958,2]
[351273373,1738505445288,-500.0,0.00010958,2]
[351273374,1738505445298,-500.0,0.00010958,2]
[351273375,1738505445307,-2008.34,0.00010958,2]
[351273376,1738505445317,-500.0,0.00010958,2]
[351273377,1738505445326,-500.0,0.00010958,2]
[351273378,1738505445336,-867.5,0.00010958,2]
[351273379,1738505445345,-530.11,0.00010958,2]
[351273380,1738505445355,-500.0,0.00010958,2]
[351273381,1738505445365,-607.18621411,0.00010958,2]
[351273382,1738505445374,-500.0,0.00010958,2]
[351273383,1738505445384,-500.0,0.00010958,2]
[351273384,1738505445394,-500.0,0.00010958,2]
[351273385,1738505445403,-500.0,0.00010958,2]
[351273386,1738505445414,-930.83,0.00010958,2]
[351273387,1738505445424,-1142.86,0.00010958,2]
[351273388,1738505445434,-1063.97,0.00010958,2]
[351273389,1738505445444,-500.0,0.00010958,2]
[351273390,1738505445454,-500.0,0.00010958,2]
[351273391,1738505445464,-500.0,0.00010958,2]
[351273392,1738505445475,-500.0,0.00010958,2]
[351273393,1738505445485,-361.46535225,0.00010958,2]
[351273394,1738505445495,-500.0,0.00010958,2]
[351273395,1738505445504,-5963.38,0.00010958,2]
[351273396,1738505445516,-632.65,0.00010958,2]
[351273397,1738505445527,-528.98,0.00010958,2]
[351273398,1738505445537,-939.46,0.00010958,2]
[351273399,1738505445547,-500.0,0.00010958,2]
[351273400,1738505445557,-500.0,0.00010958,2]
[351273401,1738505445568,-2575.73,0.00010958,2]
[351273402,1738505445579,-1411.82,0.00010958,2]
[351273403,1738505445591,-500.0,0.00010958,2]
[351273404,1738505445601,-500.0,0.00010958,2]
[351273405,1738505445612,-500.0,0.00010958,2]
[351273406,1738505445622,-500.0,0.00010958,2]
[351273407,1738505445631,-4332.07,0.00010958,2]
[351273408,1738505445881,-500.0,0.00010958,2]
[351273409,1738505445891,-500.0,0.00010958,2]
[351273410,1738505445900,-500.0,0.00010958,2]
[351273411,1738505445912,-500.0,0.00010958,2]
[351273412,1738505445922,-500.0,0.00010958,2]
[351273413,1738505445932,-623.14,0.00010958,2]
[351273414,1738505445941,-808.47,0.00010958,2]
[351273415,1738505445951,-500.0,0.00010958,2]
[351273416,1738505445960,-500.0,0.00010958,2]
[351273417,1738505445970,-500.0,0.00010958,2]
[351273419,1738505445979,-500.0,0.00010958,2]
[351273421,1738505445989,-500.0,0.00010958,2]
[351273424,1738505445998,-500.0,0.00010958,2]
[351273426,1738505446008,-500.0,0.00010958,2]
[351273427,1738505446017,-500.0,0.00010958,2]
[351273428,1738505446026,-1167.23,0.00010958,2]
[351273429,1738505446035,-500.0,0.00010958,2]
[351273430,1738505446046,-1073.14,0.00010958,2]
[351273431,1738505446055,-1266.06,0.00010958,2]
[351273432,1738505446064,-509.38464573,0.00010958,2]
[351273433,1738505446074,-500.0,0.00010958,2]
[351273434,1738505446083,-1643.83,0.00010958,2]
[351273435,1738505446093,-1098.43,0.00010958,2]
[351273436,1738505446103,-2134.84,0.00010958,2]
[351273437,1738505446113,-500.0,0.00010958,2]
[351273438,1738505446123,-500.0,0.00010958,2]
[351273439,1738505446133,-7531.63,0.00010958,2]
[351273440,1738505446142,-500.0,0.00010958,2]
[351273441,1738505446151,-636.47,0.00010958,2]
[351273442,1738505446162,-2806.74,0.00010958,2]
[351273443,1738505446171,-519.80392854,0.00010958,2]
[351273444,1738505446182,-500.0,0.00010958,2]
[351273445,1738505446192,-500.0,0.00010958,2]
[351273446,1738505446202,-500.0,0.00010958,2]
[351273447,1738505446212,-500.0,0.00010958,2]
[351273448,1738505446222,-500.0,0.00010958,2]
[351273449,1738505446232,-4457.82,0.00010958,2]
[351273450,1738505446241,-500.0,0.00010958,2]
[351273451,1738505446251,-500.0,0.00010958,2]
[351273452,1738505446261,-1068.36,0.00010958,2]
[351273453,1738505446271,-500.0,0.00010958,2]
[351273454,1738505446281,-1431.15,0.00010958,2]
[351273455,1738505446290,-3317.75,0.00010958,2]
[351273456,1738505446300,-500.0,0.00010958,2]
[351273457,1738505446309,-8487.58014,0.00010958,2]
[351273458,1738505446319,-500.0,0.00010958,2]
[351273459,1738505446330,-500.0,0.00010958,2]
[351273460,1738505446339,-500.0,0.00010958,2]
[351273461,1738505446349,-500.0,0.00010958,2]
[351273462,1738505446359,-500.0,0.00010958,2]